fUST/lending_fUST_20251002
["ID","MTS","AMOUNT","RATE_DAILY","PERIOD"]
[388791487,1759362642809,-500.0,0.00019452,2]
[388791488,1759362642819,-500.0,0.00019452,2]
[388791489,1759362642829,-632.43,0.00019452,2]
[388791490,1759362642838,-500.0,0.00019452,2]
[388791491,1759362642847,-500.0,0.00019452,2]
[388791492,1759362642857,-500.0,0.00019452,2]
[388791493,1759362642866,-500.0,0.00019452,2]
[388791494,1759362642875,-500.0,0.00019452,2]
[388791495,1759362642885,-500.0,0.00019452,2]
[388791496,1759362642894,-500.0,0.00019452,2]
[388791497,1759362642903,-500.0,0.00019452,2]
[388791498,1759362642912,-500.0,0.00019452,2]
[388791499,1759362642922,-500.0,0.00019452,2]
[388791500,1759362642932,-500.0,0.00019452,2]
[388791501,1759362642941,-500.0,0.00019452,2]
[388791502,1759362642950,-500.0,0.00019452,2]
[388791503,1759362642960,-363.01149758,0.00019452,2]
[388791504,1759362642969,-500.0,0.00019452,2]
[388791505,1759362642979,-480.0,0.00019452,2]
[388791506,1759362642988,-500.0,0.00019452,2]
[388791507,1759362642998,-500.0,0.00019452,2]
[388791508,1759362643007,-500.0,0.00019452,2]
[388791509,1759362643017,-500.0,0.00019452,2]
[388791510,1759362643026,-500.0,0.00019452,2]
[388791511,1759362643036,-500.0,0.00019452,2]
[388791512,1759362643045,-500.0,0.00019452,2]
[388791513,1759362643055,-460.0,0.00019452,2]
[388791514,1759362643064,-500.0,0.00019452,2]
[388791515,1759362643074,-1242.76,0.00019452,2]
[388791516,1759362643083,-500.0,0.00019452,2]
[388791517,1759362643092,-500.0,0.00019452,2]
[388791518,1759362643101,-500.0,0.00019452,2]
[388791519,1759362643110,-2012.66,0.00019452,2]
[388791520,1759362643120,-500.0,0.00019452,2]
[388791521,1759362643130,-500.0,0.00019452,2]
[388791522,1759362643140,-500.0,0.00019452,2]
[388791523,1759362643149,-500.0,0.00019452,2]
[388791524,1759362643158,-500.0,0.00019452,2]
[388791526,1759362643168,-500.0,0.00019452,2]
[388791528,1759362643177,-500.0,0.00019452,2]
[388791530,1759362643187,-300.0,0.00019458,2]
[388791532,1759362643196,-300.0,0.00019458,2]
[388791534,1759362643206,-605.27830802,0.00019473,2]
[388791536,1759362643215,-164.99837838,0.00019473,2]
[388791538,1759362643224,-578.408847,0.00019473,2]
[388791541,1759362643234,-500.0,0.00019473,2]
[388791543,1759362643243,-500.0,0.00019473,2]
[388791544,1759362643252,-500.0,0.00019473,2]
[388791546,1759362643261,-500.0,0.00019473,2]
[388791548,1759362643271,-344.90386514,0.00019473,2]
[388791550,1759362643280,-500.0,0.00019473,2]
[388791552,1759362643290,-506.06717383,0.00019473,2]
[388791554,1759362643299,-500.0,0.00019473,2]
[388791556,1759362643309,-502.14044378,0.00019473,2]
[388791558,1759362643318,-500.0,0.00019473,2]
[388791560,1759362643328,-500.0,0.00019473,2]
[388791562,1759362643338,-500.0,0.00019473,2]
[388791564,1759362643348,-150.0,0.00019473,2]
[388791566,1759362643358,-500.0,0.00019473,2]
[388791568,1759362643367,-500.0,0.00019473,2]
[388791571,1759362643377,-500.0,0.00019473,2]
[388791573,1759362643386,-500.0,0.00019473,2]
[388791576,1759362643397,-500.0,0.00019473,2]
[388791579,1759362643411,-500.0,0.00019473,2]
[388791582,1759362643425,-500.0,0.00019473,2]
[388791584,1759362643435,-500.0,0.00019473,2]
[388791586,1759362643446,-500.0,0.00019473,2]
[388791587,1759362643455,-261.59639899,0.00019495,2]
[388791589,1759362643465,-155.1244069,0.0001961,2]
[388791591,1759362643475,-500.0,0.00019726,2]
[388791593,1759362643485,-360.0,0.00019726,2]
[388791595,1759362643495,-406.52,0.00019726,2]
[388791597,1759362643505,-433.93530606,0.00019726,2]
[388791599,1759362643514,-380.0,0.00019726,2]
[388791600,1759362643524,-500.0,0.00019726,2]
[388791601,1759362643533,-500.0,0.00019726,2]
[388791602,1759362643543,-500.0,0.00019726,2]
[388791603,1759362643552,-500.0,0.00019726,2]
[388791604,1759362643562,-500.0,0.00019726,2]
[388791605,1759362643572,-500.0,0.00019726,2]
[388791606,1759362643581,-360.79,0.00019726,2]
[388791608,1759362643591,-500.0,0.00019726,2]
[388791609,1759362643600,-422.95,0.00019726,2]
[388791611,1759362643609,-421.04,0.00019726,2]
[388791613,1759362643619,-500.0,0.00019726,2]
[388791615,1759362643628,-500.0,0.00019726,2]
[388791617,1759362643637,-500.0,0.00019726,2]
[388791619,1759362643647,-500.0,0.00019726,2]
[388791621,1759362643656,-500.0,0.00019726,2]
[388791623,1759362643666,-500.0,0.00019726,2]
[388791625,1759362643676,-500.0,0.00019726,2]
[388791627,1759362643686,-500.0,0.00019726,2]
[388791629,1759362643695,-571.65898117,0.00019726,2]
[388791631,1759362643705,-500.0,0.00019726,2]
[388791633,1759362643714,-500.0,0.00019726,2]
[388791634,1759362643724,-500.0,0.00019726,2]
[388791636,1759362643734,-343.03,0.00019726,2]
[388791638,1759362643744,-500.0,0.00019726,2]
[388791640,1759362643754,-500.0,0.00019726,2]
[388791642,1759362643764,-500.0,0.00019726,2]
[388791644,1759362643773,-500.0,0.00019726,2]
[388791646,1759362643783,-500.0,0.00019726,2]
[388791648,1759362643793,-163.48,0.00019726,2]
[388791650,1759362643802,-151.0,0.00019726,2]
[388791652,1759362643812,-154.26221,0.00019726,2]
[388791653,1759362643822,-608.52,0.00019726,2]
[388791654,1759362643831,-151.0,0.00019726,2]
[388791655,1759362643840,-151.0,0.00019726,2]
[388791656,1759362643850,-151.0,0.00019726,2]
[388791657,1759362643859,-510.86,0.00019726,2]
[388791658,1759362643868,-153.489656,0.00019726,2]
[388791659,1759362643878,-151.0,0.00019726,2]
[388791660,1759362643995,-151.0,0.00019726,2]
[388791661,1759362644005,-151.0,0.00019726,2]
[388791662,1759362644015,-470.65517577,0.00019726,2]
[388791663,1759362644024,-500.0,0.00019726,2]
[388791665,1759362644034,-151.0,0.00019726,2]
[388791667,1759362644043,-151.0,0.00019726,2]
[388791668,1759362644052,-460.0,0.00019726,2]
[388791669,1759362644062,-500.0,0.00019726,2]
[388791670,1759362644071,-502.64,0.00019726,2]
[388791671,1759362644080,-609.22,0.00019726,2]
[388791672,1759362644089,-500.0,0.00019726,2]
[388791673,1759362644099,-151.0,0.00019726,2]
[388791674,1759362644109,-500.0,0.00019726,2]
[388791675,1759362644118,-151.0,0.00019726,2]
[388791676,1759362644128,-500.0,0.00019726,2]
[388791677,1759362644138,-500.0,0.00019726,2]
[388791678,1759362644147,-280.0,0.00019726,2]
[388791679,1759362644157,-500.0,0.00019726,2]
[388791680,1759362644167,-460.0,0.00019726,2]
[388791681,1759362644176,-500.0,0.00019726,2]
[388791682,1759362644185,-500.0,0.00019726,2]
[388791684,1759362644195,-500.0,0.00019726,2]
[388791686,1759362644204,-500.0,0.00019726,2]
[388791688,1759362644214,-760.78,0.00019726,2]
[388791690,1759362644224,-500.0,0.00019726,2]
[388791692,1759362644234,-500.0,0.00019726,2]
[388791694,1759362644243,-3165.13,0.00019726,2]
[388791696,1759362644252,-440.0,0.00019726,2]
[388791698,1759362644262,-500.0,0.00019726,2]
[388791700,1759362644272,-500.0,0.00019726,2]
[388791702,1759362644281,-500.0,0.00019726,2]
[388791704,1759362644290,-632.43,0.00019726,2]
[388791706,1759362644299,-500.0,0.00019726,2]
[388791708,1759362644309,-534.24693214,0.00019726,2]
[388791710,1759362644318,-500.0,0.00019726,2]
[388791712,1759362644328,-500.0,0.00019726,2]
[388791714,1759362644338,-178.454584,0.00019726,2]
[388791716,1759362644347,-624.35,0.00019726,2]
[388791718,1759362644356,-500.0,0.00019726,2]
[388791720,1759362644366,-500.0,0.00019726,2]
[388791722,1759362644375,-151.0,0.00019726,2]
[388791724,1759362644385,-500.0,0.00019726,2]
[388791726,1759362644394,-500.0,0.00019726,2]
[388791728,1759362644408,-500.0,0.00019726,2]
[388791730,1759362644417,-500.0,0.00019726,2]
[388791732,1759362644426,-500.0,0.00019726,2]
[388791734,1759362644436,-500.0,0.00019726,2]
[388791736,1759362644447,-1242.76,0.00019726,2]
[388791738,1759362644456,-500.0,0.00019726,2]
[388791739,1759362644467,-416.53,0.00019726,2]
[388791742,1759362644479,-500.0,0.00019726,2]
[388791743,1759362644489,-2012.66,0.00019726,2]
[388791746,1759362644499,-500.0,0.00019726,2]
[388791748,1759362644509,-151.0,0.00019726,2]
[388791750,1759362644519,-500.0,0.00019726,2]
[388791752,1759362644529,-500.0,0.00019726,2]
[388791754,1759362644539,-500.0,0.00019726,2]
[388791756,1759362644549,-500.0,0.00019726,2]
[388791758,1759362644558,-500.0,0.00019726,2]
[388791760,1759362644568,-500.0,0.00019726,2]
[388791762,1759362644578,-151.0,0.00019778,2]
[388791764,1759362644587,-5000.0,0.00019778,2]
[388791766,1759362644597,-170.86999717,0.0002,2]
[388791767,1759362644606,-500.0,0.0002,2]
[388791770,1759362644617,-500.0,0.0002,2]
[388791772,1759362644627,-500.0,0.0002,2]
[388791774,1759362644636,-500.0,0.0002,2]
[388791776,1759362644645,-500.0,0.0002,2]
[388791777,1759362644655,-500.0,0.0002,2]
[388791779,1759362644666,-500.0,0.0002,2]
[388791781,1759362644676,-500.0,0.0002,2]
[388791783,1759362644685,-500.0,0.0002,2]
[388791785,1759362644696,-500.0,0.0002,2]
[388791787,1759362644706,-500.0,0.0002,2]
[388791789,1759362644716,-500.0,0.0002,2]
[388791791,1759362644725,-500.0,0.0002,2]
[388791793,1759362644735,-151.0,0.0002,2]
[388791795,1759362644744,-151.0,0.0002,2]
[388791797,1759362644754,-151.0,0.0002,2]
[388791799,1759362644763,-382.96049648,0.0002,2]
[388791801,1759362644772,-545.68,0.0002,2]
[388791803,1759362644782,-500.0,0.0002,2]
[388791805,1759362644791,-500.0,0.0002,2]
[388791807,1759362644801,-510.86,0.0002,2]
[388791809,1759362644810,-500.0,0.0002,2]
[388791811,1759362644820,-500.0,0.0002,2]
[388791813,1759362644830,-500.0,0.0002,2]
[388791815,1759362644839,-502.64,0.0002,2]
[388791817,1759362644849,-609.22,0.0002,2]
[388791819,1759362644858,-448.56992997,0.0002,2]
[388791821,1759362644867,-500.0,0.0002,2]
[388791823,1759362644877,-500.0,0.0002,2]
[388791825,1759362644886,-500.0,0.0002,2]
[388791827,1759362644895,-500.0,0.0002,2]
[388791829,1759362644905,-500.0,0.0002,2]
[388791831,1759362644916,-500.0,0.0002,2]
[388791833,1759362644926,-500.0,0.0002,2]
[388791835,1759362644935,-253.7341434,0.0002,2]
[388791837,1759362644944,-500.0,0.0002,2]
[388791839,1759362644954,-760.78,0.0002,2]
[388791841,1759362644963,-366.97,0.0002,2]
[388791843,1759362644972,-153.1,0.0002,2]
[388791845,1759362644981,-3165.13,0.0002,2]
[388791846,1759362644991,-151.0,0.0002,2]
[388791848,1759362645001,-151.0,0.0002,2]
[388791850,1759362645010,-500.0,0.0002,2]
[388791852,1759362645020,-500.0,0.0002,2]
[388791855,1759362645029,-500.0,0.0002,2]
[388791856,1759362645039,-632.43,0.0002,2]
[388791859,1759362645048,-500.0,0.0002,2]
[388791860,1759362645059,-500.0,0.0002,2]
[388791862,1759362645068,-500.0,0.0002,2]
[388791864,1759362645077,-500.0,0.0002,2]
[388791866,1759362645087,-500.0,0.0002,2]
[388791868,1759362645096,-500.0,0.0002,2]
[388791870,1759362645105,-460.0,0.0002,2]
[388791872,1759362645114,-500.0,0.0002,2]
[388791874,1759362645123,-500.0,0.0002,2]
[388791876,1759362645132,-500.0,0.0002,2]
[388791878,1759362645141,-500.0,0.0002,2]
[388791880,1759362645150,-1242.76,0.0002,2]
[388791881,1759362645159,-500.0,0.0002,2]
[388791883,1759362645170,-500.0,0.0002,2]
[388791886,1759362645181,-2012.66,0.0002,2]
[388791888,1759362645190,-476.22666989,0.0002,2]
[388791889,1759362645199,-500.0,0.0002,2]
[388791891,1759362645208,-500.0,0.0002,2]
[388791893,1759362645217,-500.0,0.0002,2]
[388791895,1759362645226,-500.0,0.0002,2]
[388791896,1759362645236,-1000.0,0.00020021,2]
[388791897,1759362645245,-232.55927127,0.00020021,2]
[388791899,1759362645255,-1000.0,0.00020021,2]
[388791901,1759362645264,-1000.0,0.00020021,2]
[388791903,1759362645273,-1000.0,0.00020021,2]
[388791904,1759362645282,-1000.0,0.00020021,2]
[388791907,1759362645291,-1000.0,0.00020021,2]
[388791909,1759362645301,-500.0,0.00020021,2]
[388791910,1759362645310,-1000.0,0.00020021,2]
[388791912,1759362645319,-1000.0,0.00020021,2]
[388791914,1759362645328,-506.42210844,0.00020021,2]
[388791916,1759362645337,-1000.0,0.00020021,2]
[388791918,1759362645346,-1000.0,0.00020021,2]
[388791920,1759362645355,-270.66255595,0.00020021,2]
[388791922,1759362645364,-1000.0,0.00020021,2]
[388791924,1759362645373,-151.0,0.00020021,2]
[388791926,1759362645382,-335.37222766,0.00020096,2]
[388791928,1759362645391,-1103.06924532,0.00020097,2]
[388791930,1759362645406,-600.0,0.00020119,2]
[388791931,1759362645416,-1366.89,0.00020172,2]
[388791933,1759362645426,-500.0,0.00020272,2]
[388791935,1759362645435,-151.0,0.00020272,2]
[388791938,1759362645445,-500.0,0.00020273,2]
[388791940,1759362645454,-375.40399391,0.00020273,2]
[388791941,1759362645464,-500.0,0.00020273,2]
[388791944,1759362645473,-500.0,0.00020273,2]
[388791945,1759362645485,-402.46090771,0.00020273,2]
[388791947,1759362645494,-182.56,0.00020273,2]
[388791949,1759362645504,-500.0,0.00020273,2]
[388791951,1759362645513,-500.0,0.00020273,2]
[388791953,1759362645522,-500.0,0.00020273,2]
[388791955,1759362645531,-500.0,0.00020273,2]
[388791957,1759362645540,-460.0,0.00020273,2]
[388791959,1759362645550,-582.93265074,0.00020273,2]
[388791961,1759362645559,-430.58,0.00020273,2]
[388791963,1759362645569,-500.0,0.00020273,2]
[388791965,1759362645578,-510.86,0.00020273,2]
[388791968,1759362645588,-500.0,0.00020273,2]
[388791969,1759362645596,-502.64,0.00020273,2]
[388791971,1759362645606,-609.22,0.00020273,2]
[388791973,1759362645615,-162.92639644,0.00020273,2]
[388791975,1759362645624,-500.0,0.00020273,2]
[388791977,1759362645633,-500.0,0.00020273,2]
[388791980,1759362645646,-162.06178964,0.00020273,2]
[388791981,1759362645656,-500.0,0.00020273,2]
[388791983,1759362645666,-500.0,0.00020273,2]
[388791986,1759362645676,-500.0,0.00020273,2]
[388791987,1759362645685,-760.78,0.00020273,2]
[388791989,1759362645695,-3165.13,0.00020273,2]
[388791991,1759362645703,-500.0,0.00020273,2]
[388791993,1759362645713,-500.0,0.00020273,2]
[388791995,1759362645722,-500.0,0.00020273,2]
[388791997,1759362645732,-632.43,0.00020273,2]
[388791999,1759362645741,-500.0,0.00020273,2]
[388792001,1759362645750,-500.0,0.00020273,2]
[388792003,1759362645760,-500.0,0.00020273,2]
[388792004,1759362645769,-500.0,0.00020273,2]
[388792005,1759362645782,-460.0,0.00020273,2]
[388792006,1759362645791,-500.0,0.00020273,2]
[388792007,1759362645800,-500.0,0.00020273,2]
[388792008,1759362645810,-500.0,0.00020273,2]
[388792009,1759362645820,-500.0,0.00020273,2]
[388792010,1759362645831,-500.0,0.00020273,2]
[388792011,1759362645840,-1242.76,0.00020273,2]
[388792012,1759362645849,-440.0,0.00020273,2]
[388792013,1759362645859,-500.0,0.00020273,2]
[388792015,1759362645868,-2012.66,0.00020273,2]
[388792017,1759362645877,-174.58,0.00020273,2]
[388792019,1759362645887,-440.78,0.00020273,2]
[388792021,1759362645896,-500.0,0.00020273,2]
[388792023,1759362645905,-500.0,0.00020274,2]
[388792025,1759362645916,-808.04753691,0.00020292,2]
[388792027,1759362645925,-233.9640895,0.00020336,2]
[388792029,1759362645935,-160.0,0.00020336,2]
[388792031,1759362645944,-160.0,0.00020336,2]
[388792034,1759362645953,-160.0,0.00020336,2]
[388792035,1759362645962,-154.450076,0.00020381,2]
[388792038,1759362645972,-5280.65386237,0.00020409,2]
[388792040,1759362645981,-422.952,0.0002042,2]
[388792041,1759362645990,-1522.54,0.00020442,2]
[388792043,1759362645999,-1148.35679012,0.0002051,2]
[388792046,1759362646009,-179.28540534,0.00020516,2]
[388792048,1759362646018,-500.0,0.00020546,2]
[388792050,1759362646027,-154.2608143,0.00020547,2]
[388792052,1759362646036,-151.0,0.00020547,2]
[388792054,1759362646045,-500.0,0.00020547,2]
[388792056,1759362646054,-500.0,0.00020547,2]
[388792058,1759362646063,-460.0,0.00020547,2]
[388792059,1759362646073,-500.0,0.00020547,2]
[388792061,1759362646082,-500.0,0.00020547,2]
[388792063,1759362646091,-151.0,0.00020547,2]
[388792065,1759362646100,-151.0,0.00020547,2]
[388792067,1759362646109,-151.0,0.00020547,2]
[388792069,1759362646118,-510.86,0.00020547,2]
[388792071,1759362646127,-151.923646,0.00020547,2]
[388792073,1759362646136,-151.0,0.00020547,2]
[388792075,1759362646145,-151.0,0.00020547,2]
[388792077,1759362646154,-209.457852,0.00020547,2]
[388792079,1759362646164,-500.0,0.00020547,2]
[388792081,1759362646173,-502.64,0.00020547,2]
[388792083,1759362646182,-609.22,0.00020547,2]
[388792085,1759362646191,-151.0,0.00020547,2]
[388792087,1759362646200,-500.0,0.00020547,2]
[388792089,1759362646209,-521.03787213,0.00020547,2]
[388792091,1759362646219,-642.35,0.00020547,2]
[388792093,1759362646228,-500.0,0.00020547,2]
[388792096,1759362646238,-500.0,0.00020547,2]
[388792097,1759362646247,-760.78,0.00020547,2]
[388792099,1759362646256,-3165.13,0.00020547,2]
[388792101,1759362646265,-412.3,0.00020547,2]
[388792104,1759362646275,-224.51,0.00020547,2]
[388792106,1759362646284,-500.0,0.00020547,2]
[388792108,1759362646295,-632.43,0.00020547,2]
[388792110,1759362646304,-500.0,0.00020547,2]
[388792112,1759362646314,-447.46417328,0.00020547,2]
[388792114,1759362646323,-500.0,0.00020547,2]
[388792116,1759362646332,-500.0,0.00020547,2]
[388792121,1759362646368,-500.0,0.00020547,2]
[388792123,1759362646377,-500.0,0.00020547,2]
[388792125,1759362646387,-500.0,0.00020547,2]
[388792127,1759362646396,-500.0,0.00020547,2]
[388792129,1759362646410,-500.0,0.00020547,2]
[388792131,1759362646420,-1242.76,0.00020547,2]
[388792134,1759362646430,-500.0,0.00020547,2]
[388792136,1759362646440,-2012.66,0.00020547,2]
[388792138,1759362646450,-151.0,0.00020547,2]
[388792139,1759362646459,-500.0,0.00020547,2]
[388792141,1759362646469,-570.00051154,0.00020548,2]
[388792143,1759362646480,-1500.0,0.00020568,2]
[388792145,1759362646489,-953.0,0.00020568,2]
[388792147,1759362646498,-1000.0,0.00020568,2]
[388792149,1759362646508,-1000.0,0.00020568,2]
[388792151,1759362646517,-1500.0,0.00020568,2]
[388792154,1759362646527,-1000.0,0.00020568,2]
[388792155,1759362646536,-1500.0,0.00020568,2]
[388792157,1759362646545,-1500.0,0.00020568,2]
[388792159,1759362646555,-1500.0,0.00020568,2]
[388792161,1759362646564,-4000.0,0.00020599,2]
[388792163,1759362646573,-151.0,0.00020599,2]
[388792165,1759362646582,-1371.19296058,0.0002061,2]
[388792167,1759362646591,-154.450076,0.00020614,2]
[388792169,1759362646600,-160.0,0.0002068,2]
[388792171,1759362646609,-500.0,0.00020773,2]
[388792173,1759362646619,-500.0,0.00020773,2]
[388792175,1759362646628,-500.0,0.00020773,2]
[388792177,1759362646637,-420.0,0.00020791,2]
[388792179,1759362646646,-500.0,0.00020795,2]
[388792181,1759362646655,-500.0,0.00020795,2]
[388792183,1759362646665,-500.0,0.00020795,2]
[388792185,1759362646675,-500.0,0.00020795,2]
[388792187,1759362646683,-200.0117218,0.00020795,2]
[388792189,1759362646692,-200.01019671,0.00020795,2]
[388792191,1759362646702,-500.0,0.00020795,2]
[388792193,1759362646711,-200.01019669,0.00020795,2]
[388792195,1759362646720,-200.0117218,0.00020795,2]
[388792197,1759362646729,-500.0,0.00020795,2]
[388792199,1759362646738,-500.0,0.00020795,2]
[388792201,1759362646747,-200.01019669,0.00020795,2]
[388792203,1759362646756,-151.0,0.00020816,2]
[388792204,1759362646765,-151.0,0.00020816,2]
[388792206,1759362646775,-151.0,0.00020816,2]
[388792209,1759362646785,-500.0,0.00020821,2]
[388792211,1759362646794,-568.86,0.00020821,2]
[388792213,1759362646803,-500.0,0.00020821,2]
[388792215,1759362646812,-500.0,0.00020821,2]
[388792217,1759362646821,-510.86,0.00020821,2]
[388792219,1759362646831,-500.0,0.00020821,2]
[388792221,1759362646840,-502.64,0.00020821,2]
[388792223,1759362646851,-609.22,0.00020821,2]
[388792225,1759362646860,-548.41023813,0.00020821,2]
[388792227,1759362646870,-500.0,0.00020821,2]
[388792229,1759362646878,-500.0,0.00020821,2]
[388792231,1759362646888,-760.78,0.00020821,2]
[388792233,1759362646897,-3165.13,0.00020821,2]
[388792235,1759362646906,-151.0,0.00020821,2]
[388792237,1759362646915,-151.0,0.00020821,2]
[388792239,1759362646924,-500.0,0.00020821,2]
[388792241,1759362646935,-632.43,0.00020821,2]
[388792243,1759362646944,-500.0,0.00020821,2]
[388792245,1759362646954,-500.0,0.00020821,2]
[388792247,1759362646963,-500.0,0.00020821,2]
[388792249,1759362646972,-500.0,0.00020821,2]
[388792251,1759362646981,-500.0,0.00020821,2]
[388792253,1759362646990,-500.0,0.00020821,2]
[388792255,1759362646999,-500.0,0.00020821,2]
[388792257,1759362647008,-500.0,0.00020821,2]
[388792259,1759362647017,-1242.76,0.00020821,2]
[388792261,1759362647026,-500.0,0.00020821,2]
[388792263,1759362647035,-2012.66,0.00020821,2]
[388792265,1759362647045,-340.0,0.00020821,2]
[388792267,1759362647054,-500.0,0.00020838,2]
[388792268,1759362647063,-500.0,0.00020838,2]
[388792270,1759362647072,-500.0,0.00020838,2]
[388792272,1759362647081,-200.01019671,0.00020838,2]
[388792274,1759362647090,-500.0,0.00020838,2]
[388792276,1759362647100,-256.69308645,0.00020838,2]
[388792278,1759362647109,-500.0,0.00020838,2]
[388792280,1759362647118,-200.41102314,0.00020838,2]
[388792282,1759362647127,-500.0,0.00020838,2]
[388792284,1759362647136,-500.0,0.00020838,2]
[388792286,1759362647145,-500.0,0.00020838,2]
[388792288,1759362647155,-500.0,0.00020838,2]
[388792291,1759362647164,-500.0,0.00020838,2]
[388792293,1759362647174,-500.0,0.00020838,2]
[388792295,1759362647183,-500.0,0.00020838,2]
[388792297,1759362647192,-500.0,0.00020838,2]
[388792298,1759362647201,-500.0,0.00020838,2]
[388792300,1759362647210,-500.0,0.00020838,2]
[388792302,1759362647219,-500.0,0.00020838,2]
[388792305,1759362647228,-500.0,0.00020838,2]
[388792307,1759362647238,-500.0,0.00020838,2]
[388792309,1759362647247,-500.0,0.00020838,2]
[388792311,1759362647258,-500.0,0.00020838,2]
[388792313,1759362647267,-500.0,0.00020838,2]
[388792315,1759362647276,-500.0,0.00020838,2]
[388792317,1759362647285,-500.0,0.00020838,2]
[388792319,1759362647295,-500.0,0.00020838,2]
[388792321,1759362647304,-500.0,0.00020838,2]
[388792323,1759362647313,-500.0,0.00020838,2]
[388792325,1759362647322,-500.0,0.00020838,2]
[388792327,1759362647332,-158.96308781,0.00020838,2]
[388792329,1759362647341,-502.60943045,0.00020838,2]
[388792331,1759362647350,-500.0,0.00020838,2]
[388792333,1759362647359,-500.0,0.00020838,2]
[388792335,1759362647369,-1680.0,0.00020892,2]
[388792337,1759362647378,-4000.0,0.00020899,2]
[388792339,1759362647387,-252.85062586,0.000209,2]
[388792341,1759362647396,-176.23590451,0.00020917,2]
[388792343,1759362647411,-500.0,0.00020917,2]
[388792345,1759362647420,-500.0,0.00020917,2]
[388792347,1759362647430,-500.0,0.00020917,2]
[388792349,1759362647440,-500.0,0.00020917,2]
[388792351,1759362647449,-553.47499876,0.00020917,2]
[388792353,1759362647459,-500.0,0.00020969,2]
[388792355,1759362647468,-500.0,0.00020969,2]
[388792357,1759362647479,-500.0,0.00020969,2]
[388792359,1759362647489,-500.0,0.00020969,2]
[388792361,1759362647498,-273.30125555,0.00021,2]
[388792363,1759362647507,-204.45755051,0.00021,2]
[388792365,1759362647517,-1669.274776,0.00021,2]
[388792367,1759362647533,-500.0,0.00021095,2]
[388792369,1759362647542,-500.0,0.00021095,2]
[388792371,1759362647551,-500.0,0.00021095,2]
[388792373,1759362647561,-510.86,0.00021095,2]
[388792375,1759362647576,-500.0,0.00021095,2]
[388792377,1759362647585,-502.64,0.00021095,2]
[388792379,1759362647595,-609.22,0.00021095,2]
[388792381,1759362647604,-152.480235,0.00021095,2]
[388792383,1759362647613,-151.0,0.00021095,2]
[388792385,1759362647623,-190.646693,0.00021095,2]
[388792387,1759362647633,-500.0,0.00021095,2]
[388792389,1759362647642,-151.0,0.00021095,2]
[388792391,1759362647651,-500.0,0.00021095,2]
[388792393,1759362647661,-760.78,0.00021095,2]
[388792395,1759362647671,-3165.13,0.00021095,2]
[388792397,1759362647680,-371.52,0.00021095,2]
[388792399,1759362647689,-632.43,0.00021095,2]
[388792401,1759362647698,-500.0,0.00021095,2]
[388792403,1759362647708,-500.0,0.00021095,2]